[Event "29th Bosnjaci Open 2025"]
[Site "Bosnjaci"]
[Date "2025.01.03"]
[Round "1.13"]
[White "Zadravec, Matija"]
[Black "Jokic, Bozo"]
[Result "1-0"]
[ECO "B22"]
[WhiteElo "2283"]
[BlackElo "1898"]
[Annotator "TA"]
[PlyCount "107"]
[EventDate "2025.01.04"]
[EventType "swiss"]
[EventCountry "CRO"]
[SourceTitle "playchess.com"]
[Source "ChessBase"]
[SourceQuality "1"]
[TimeControl "5400+30"]

{[%evp 14,107,61,60,110,110,108,94,111,100,125,108,109,74,122,105,147,124,180,146,180,161,175,156,227,203,242,228,240,244,318,335,369,370,336,336,380,371,381,365,389,396,462,460,536,525,518,514,689,547,738,675,745,696,737,670,681,641,725,742,960,946,968,1025,947,945,1322,1297,1269,985,1073,1108,1482,1483,1206,1241,1713,1568,1897,1295,1600,1650,1943,1731,1851,1606,2238,2064,2000,1493,2083,2052,5684,1591,1855,1750]} 1. e4 {[%emt 0:00:08]} c5 {[%emt 0:00:10]} 2. Nf3 {[%emt 0:00:23]} Nc6 {[%emt 0:00:18]} 3. c3 {[%emt 0:01:38][%cal Bc2c3,Bc3d4,Bd4d5][%mdl 32]} d6 {[%emt 0:00:25]} 4. d4 {[%emt 0:00:34]} cxd4 {[%emt 0:00:17]} 5. cxd4 {[%emt 0:00:10]} e6 {[%emt 0:01:41]} 6. Nc3 {[%emt 0:01:37]} Be7 {[%emt 0:00:34]} 7. Bd3 {[%emt 0:04:23]} Nf6 {[%emt 0:00:58]} 8. O-O {[%emt 0:00:36]} e5 {[%emt 0:02:33]} (8... O-O $14) 9. d5 $16 {[%emt 0:01:54][%cal Od1a4]} Nb8 {[%emt 0:00:20]} 10. h3 {[%emt 0:01:20] Prevents Bg4} h6 {[%emt 0:00:33]} 11. Be3 {[%emt 0:00:34]} Nbd7 {[%emt 0:00:43]} 12. Rc1 {[%emt 0:06:39]} O-O {[%emt 0:02:57]} 13. b4 {[%emt 0:11:20]} Ne8 {[%emt 0:03:40]} ({Black should play} 13... a5) 14. Rc2 {[%emt 0:05:27] Black is weak on the light squares} Kh7 {[%emt 0:02:13]} 15. Qd2 {[%emt 0:01:59] White is much more active.} Rh8 {[%emt 0:03:57]} (15... Kg8 $16 16. Rfc1 Ndf6) 16. Rfc1 {[%emt 0:01:33]} b6 {[%emt 0:05:04]} 17. Bb5 {[%emt 0:02:41]} Rb8 {[%emt 0:08:02]} 18. Bc6 {[%emt 0:00:41]} Ba6 {[%emt 0:02:03]} (18... a6 $16 {is a better defense.} 19. Qd3 g6) 19. Nb5 $18 {[%emt 0:03:35]} Bxb5 {[%emt 0:02:12]} 20. Bxb5 {[%emt 0:00:02][%cal Bc6b5,Bb5a6,Ba6c8,Bc8f5][%mdl 32]} Ndf6 {[%emt 0:14:02]} 21. Qd3 {[%emt 0:03:21]} g5 {[%emt 0:04:29]} 22. Ba6 {[%emt 0:13:57]} Rg8 {[%emt 0:05:57]} 23. Rc8 {[%emt 0:02:16]} Rxc8 {[%emt 0:00:15]} 24. Bxc8 {[%emt 0:00:06] Bf5+ would now be deadly.} Nc7 {[%emt 0:04:00]} 25. Bf5+ {[%emt 0:01:27]} Kh8 {[%emt 0:02:04]} 26. Rc6 {[%emt 0:02:12]} Nfe8 {[%emt 0:01:00]} 27. a4 {[%emt 0:06:13]} f6 {[%emt 0:01:33]} 28. Qc2 {[%emt 0:05:01]} Bf8 {[%emt 0:06:33]} 29. Nd2 {[%emt 0:03:52]} Rg7 {[%emt 0:01:30]} 30. b5 {[%emt 0:02:12]} Qb8 {[%emt 0:03:47]} 31. Nc4 {[%emt 0:01:14]} Kg8 {[%emt 0:00:38]} 32. Bc1 {[%emt 0:01:56][%cal Be3c1,Bc1a3,Ba3b4,Bb4d2][%mdl 32]} Qd8 {[%emt 0:04:28]} 33. Ba3 {[%emt 0:01:06]} Qb8 {[%emt 0:00:42]} 34. Bb4 {[%emt 0:02:20]} Qd8 {[%emt 0:02:09]} 35. Qd3 {[%emt 0:00:28]} Kh8 {[%emt 0:02:27]} 36. Qa3 {[%emt 0:00:14]} a5 {[%emt 0:04:22]} 37. Bd2 {[%emt 0:00:18] This pair of bishops is nice.} Rg8 {[%emt 0:01:06]} 38. Nxb6 {[%emt 0:01:41]} Ng7 {[%emt 0:01:36]} 39. Qf3 {[%emt 0:00:33]} Nxf5 {[%emt 0:01:50]} 40. Qxf5 {[%emt 0:00:03]} Ne8 {[%emt 0:00:55]} 41. Bxa5 {[%emt 0:01:22]} Qe7 {[%emt 0:00:28]} 42. Qd7 {[%emt 0:02:06]} h5 {[%emt 0:01:00]} 43. Qxe7 {[%emt 0:00:07]} Bxe7 {[%emt 0:00:12]} 44. Nc8 {[%emt 0:00:26]} Bf8 {[%emt 0:00:31]} 45. Bb4 {[%emt 0:00:07]} g4 {[%emt 0:00:15]} 46. hxg4 {[%emt 0:00:06]} Rxg4 {[%emt 0:00:43]} 47. f3 {[%emt 0:00:07]} Rg6 {[%emt 0:00:52]} 48. a5 {[%emt 0:00:46][%cal Ba4a5,Ba5a6][%mdl 32]} h4 {[%emt 0:00:22]} 49. Kf1 {[%emt 0:00:08]} Bh6 {[%emt 0:00:35]} 50. a6 {[%emt 0:00:22]} Be3 {[%emt 0:00:15]} 51. a7 {[%emt 0:00:17]} h3 {[%emt 0:00:24]} 52. gxh3 {[%emt 0:00:05]} (52. a8=B {is a self mate.} hxg2+ 53. Ke2 g1=Q (53... g1=R $2 {too greedy.} 54. Kxe3 Rb1 55. Rc4 $18) 54. Ne7 Rg2+ 55. Kd3 Qb1+ 56. Kc4 Qa2+ 57. Kd3 Qe2+ 58. Kc3 Qc2#) 52... Rg1+ {[%emt 0:00:15]} 53. Ke2 {[%emt 0:00:05]} Bxa7 {[%emt 0:00:07]} 54. Nxa7 {[%emt 0:00:25]} 1-0

[Event "29th Bosnjaci Open 2025"]
[Site "Bosnjaci"]
[Date "2025.01.03"]
[Round "1.14"]
[White "Bedic, Slavko"]
[Black "Jakovic, Roko"]
[Result "0-1"]
[ECO "D15"]
[WhiteElo "1895"]
[BlackElo "2273"]
[Annotator "TA"]
[PlyCount "110"]
[EventDate "2025.01.04"]
[EventType "swiss"]
[EventCountry "CRO"]
[SourceTitle "playchess.com"]
[Source "ChessBase"]
[SourceQuality "1"]
[TimeControl "5400+30"]

{[%evp 12,110,-6,-6,-2,-9,-5,-9,14,-12,11,-11,-11,-15,-6,-9,-8,-49,-25,-62,-22,-25,-19,-24,-20,-21,-5,-10,0,-50,-40,-43,-59,-56,-46,-61,-41,-47,-33,-32,-20,-22,-23,-29,-18,-19,-12,-32,-25,-38,-15,-12,0,-1,0,0,0,0,0,-54,-8,-61,-62,-66,-66,-75,-60,-83,-83,-125,-116,-150,-112,-257,-250,-238,-261,-293,-283,-337,-337,-337,-253,-297,-225,-224,-112,-487,-514,-740,-740,-683,-397,-1066,-995,-847,-822,-765,-685,-751,-785]} 1. d4 {[%emt 0:00:03]} d5 {[%emt 0:00:30]} 2. c4 {[%emt 0:00:18]} c6 {[%emt 0:00:11]} 3. Nc3 {[%emt 0:02:01]} Nf6 {[%emt 0:00:25]} 4. e3 {[%emt 0:01:08]} a6 {[%emt 0:00:36]} 5. a3 {[%emt 0:04:24]} b5 {[%emt 0:01:50]} 6. cxd5 {[%emt 0:08:16]} cxd5 {[%emt 0:00:17]} 7. Nf3 {[%emt 0:00:51]} e6 {[%emt 0:03:24]} 8. Bd3 {[%emt 0:01:02]} Bb7 {[%emt 0:00:42]} 9. Bd2 {[%emt 0:01:29]} Nbd7 {[%emt 0:03:52]} 10. Rc1 {[%emt 0:04:12]} Bd6 {[%emt 0:02:43]} 11. O-O {[%emt 0:00:31]} Ne4 {[%emt 0:02:53]} 12. Na2 {[%emt 0:04:51]} Nxd2 {[%emt 0:10:22]} 13. Qxd2 {[%emt 0:05:30]} O-O {[%emt 0:01:36]} 14. Rc3 {[%emt 0:10:23]} Qe7 {[%emt 0:08:37]} 15. Nb4 {[%emt 0:06:34]} Rac8 {[%emt 0:13:28] Prevents Nc6} 16. Rfc1 {[%emt 0:01:17]} Nb6 {[%emt 0:02:23]} 17. Rxc8 {[%emt 0:07:37]} Rxc8 {[%emt 0:00:19]} 18. Rxc8+ {[%emt 0:00:21]} Nxc8 {[%emt 0:01:00]} 19. Qc2 {[%emt 0:00:09]} g6 {[%emt 0:04:38][%cal Oc8b6]} 20. Nc6 {[%emt 0:03:13]} (20. Be2 $11) 20... Qc7 $15 {[%emt 0:00:35]} 21. Nce5 {[%emt 0:00:50][%cal Bc6e5,Be5d3,Bd3c5][%mdl 32]} Nb6 {[%emt 0:01:03]} 22. Qxc7 {[%emt 0:02:53]} Bxc7 {[%emt 0:00:05]} 23. Bc2 {[%emt 0:05:56]} f6 {[%emt 0:12:20]} 24. Nd3 {[%emt 0:01:48]} Nc4 {[%emt 0:00:11]} 25. a4 {[%emt 0:10:02]} bxa4 {[%emt 0:06:56]} 26. Bxa4 {[%emt 0:00:22]} Kf7 {[%emt 0:00:47]} 27. b3 {[%emt 0:02:35]} Nb6 {[%emt 0:01:57]} 28. Nc5 {[%emt 0:01:23]} Bc8 {[%emt 0:00:39]} 29. Ne1 {[%emt 0:00:57]} Ke7 {[%emt 0:01:37]} 30. Ned3 {[%emt 0:01:10]} Kd6 {[%emt 0:06:35]} 31. f4 {[%emt 0:01:08]} a5 {[%emt 0:02:22]} 32. Bb5 {[%emt 0:01:14]} Na8 {[%emt 0:00:34]} 33. Kf2 {[%emt 0:00:36]} Bb6 {[%emt 0:00:37]} 34. Na4 {[%emt 0:03:36]} Ba7 {[%emt 0:01:21]} 35. Ndc5 {[%emt 0:01:47]} (35. Nc3 $11) 35... e5 {[%emt 0:01:13]} (35... Nc7 $15 36. Be2 e5) 36. Bd3 {[%emt 0:02:47]} (36. dxe5+ $11 fxe5 37. fxe5+ Kxe5 38. Bd7 Bxd7 39. Nxd7+ Kd6 40. Nf8) 36... Nc7 {[%emt 0:01:55]} 37. h3 {[%emt 0:00:48]} Ne6 {[%emt 0:03:48]} 38. Nxe6 {[%emt 0:02:45]} Kxe6 {[%emt 0:00:02]} 39. dxe5 {[%emt 0:00:38]} fxe5 {[%emt 0:00:15][%mdl 4096] Endgame KBB-KBN} 40. Ke2 {[%emt 0:00:35]} d4 {[%emt 0:02:11]} 41. exd4 {[%emt 0:00:59]} Bxd4 {[%emt 0:00:10]} 42. Bc4+ {[%emt 0:01:06]} (42. Kf3 $17 {might work better.}) 42... Kf5 {[%emt 0:00:29]} 43. fxe5 {[%emt 0:00:04]} Kxe5 {[%emt 0:00:08]} 44. Kd3 {[%emt 0:00:13]} Bf5+ {[%emt 0:00:16]} 45. Ke2 {[%emt 0:00:07]} Be4 {[%emt 0:00:59]} 46. g3 {[%emt 0:00:03]} Bf5 {[%emt 0:01:27]} 47. g4 {[%emt 0:00:25]} Be4 {[%emt 0:00:28]} 48. Bd3 {[%emt 0:00:24]} Kf4 {[%emt 0:01:26]} (48... Bd5 $19 49. Bc4 Be4) 49. Kd2 $2 {[%emt 0:00:26][%mdl 8192]} (49. Bxe4 $17 Kxe4 50. Kd2) 49... Bg2 $19 {[%emt 0:00:38]} 50. Be2 {[%emt 0:00:06]} Bxh3 {[%emt 0:00:21]} 51. Kd3 {[%emt 0:00:06]} Bf2 {[%emt 0:00:47]} 52. Nb2 $2 {[%emt 0:00:10]} (52. Nc3) 52... Bxg4 {[%emt 0:00:18]} 53. Nc4 {[%emt 0:00:16]} Be1 {[%emt 0:00:13]} 54. Bf1 {[%emt 0:00:09]} Kg3 {[%emt 0:00:34] ...h5 would now be deadly.} 55. Ne3 {[%emt 0:00:16]} Be6 {[%emt 0:00:28]} 0-1

[Event "29th Bosnjaci Open 2025"]
[Site "Bosnjaci"]
[Date "2025.01.03"]
[Round "1.15"]
[White "Vucenovic, Damian"]
[Black "Palian, Antun"]
[Result "1-0"]
[ECO "B03"]
[WhiteElo "2272"]
[BlackElo "1884"]
[Annotator "TA"]
[PlyCount "47"]
[EventDate "2025.01.04"]
[EventType "swiss"]
[EventCountry "CRO"]
[SourceTitle "playchess.com"]
[Source "ChessBase"]
[SourceQuality "1"]
[TimeControl "5400+30"]

{[%evp 16,47,40,35,70,2,45,0,120,118,130,139,178,175,258,261,257,243,227,152,339,360,350,364,368,266,850,836,857,827,864,863,863,812]} 1. e4 {[%emt 0:00:05][%cal Be2e4,Be4e5][%mdl 32]} Nf6 {[%emt 0:00:02][%cal Bg8f6,Bf6d5,Bd5b6][%mdl 32]} 2. e5 {[%emt 0:00:17]} Nd5 {[%emt 0:00:09]} 3. d4 {[%emt 0:00:13]} d6 {[%emt 0:00:07]} 4. c4 {[%emt 0:00:18]} Nb6 {[%emt 0:00:08]} 5. f4 {[%emt 0:00:23]} dxe5 {[%emt 0:00:06]} 6. fxe5 {[%emt 0:00:11]} Nc6 {[%emt 0:00:13]} 7. Be3 {[%emt 0:01:04]} Bf5 {[%emt 0:00:04]} 8. Nc3 {[%emt 0:02:32]} e6 {[%emt 0:00:08]} 9. Nf3 {[%emt 0:03:01]} Bb4 {[%emt 0:00:36]} 10. Bd3 {[%emt 0:03:13]} ({Better is} 10. Be2 $14) 10... Nxd4 {[%emt 0:23:02]} 11. Bxd4 {[%emt 0:06:35]} Bxd3 {[%emt 0:00:20] [#]} (11... c5 $11 12. Bxf5 cxd4) 12. c5 $1 $16 {[%emt 0:02:09][%cal Bc4c5,Bc5b6][%mdl 32]} (12. Qxd3 c5 $14) 12... Be4 {[%emt 0:14:50] Strongly threatening ...Bxf3.} 13. cxb6 {[%emt 0:01:11]} Bxf3 {[%emt 0:02:39]} 14. gxf3 {[%emt 0:02:04] Qa4+ would now be deadly.} (14. Qxf3 Qxd4 15. bxc7 Rc8 $17 (15... Qxe5+ $2 16. Qe2 $19)) 14... Qh4+ {[%emt 0:02:42]} (14... axb6 {was worth a try.} 15. O-O c5) 15. Bf2 $18 {[%emt 0:01:21]} Bxc3+ {[%emt 0:00:02]} 16. bxc3 {[%emt 0:00:10]} Qf4 {[%emt 0:00:22]} 17. Qd4 {[%emt 0:17:36]} Qxf3 $2 {[%emt 0:01:06]} (17... Qxd4 $16 18. cxd4 (18. Bxd4 axb6 19. Be3 Ra5 $16) 18... axb6) 18. Qa4+ {[%emt 0:08:38]} c6 {[%emt 0:00:14]} 19. O-O {[%emt 0:00:11]} h5 {[%emt 0:08:36]} 20. Qb4 {[%emt 0:25:25]} ({Don't do} 20. bxa7 Rh6 21. Qh4 Rxa7 $18) 20... h4 $2 {[%emt 0:02:33]} (20... axb6 21. Bxb6 Qd3) 21. bxa7 {[%emt 0:02:33]} Rh6 {[%emt 0:09:46] [#]} 22. Qe7+ $3 {[%emt 0:00:17][%mdl 512]} Kxe7 {[%emt 0:00:04]} 23. Bc5+ {[%emt 0:00:03]} Ke8 {[%emt 0:00:19]} 24. Rxf3 {[%emt 0:00:05]} 1-0

[Event "29th Bosnjaci Open 2025"]
[Site "Bosnjaci"]
[Date "2025.01.03"]
[Round "1.16"]
[White "Bekcic, Martin"]
[Black "Gal, Andrej"]
[Result "0-1"]
[ECO "E14"]
[WhiteElo "1882"]
[BlackElo "2256"]
[Annotator "TA"]
[PlyCount "94"]
[EventDate "2025.01.04"]
[EventType "swiss"]
[EventCountry "CRO"]
[SourceTitle "playchess.com"]
[Source "ChessBase"]
[SourceQuality "1"]
[TimeControl "5400+30"]

{[%evp 15,93,23,30,-17,4,-16,-16,-12,-25,-35,-49,-54,-12,-37,-31,-35,-18,-49,0,0,0,-58,-41,-77,-71,-81,-72,-76,-55,-64,-59,-60,-55,-55,-42,-107,-58,-102,-99,-122,-38,-40,-36,-36,-20,-21,-24,-23,-29,-38,-38,-29,-38,-231,-119,-118,-94,-100,-39,-37,-36,-102,-102,-102,-76,-102,-93,-183,-183,-764,-751,-732,-742,-700,-677,-29997,-29998,-29998,-29999,-29999]} 1. d4 {[%emt 0:00:08]} Nf6 {[%emt 0:00:03]} 2. Nf3 {[%emt 0:00:43]} e6 {[%emt 0:00:04]} 3. e3 {[%emt 0:00:38]} b6 {[%emt 0:04:18]} 4. c4 {[%emt 0:01:00]} Bb7 {[%emt 0:00:10]} 5. Nc3 {[%emt 0:01:04]} d5 {[%emt 0:04:45]} 6. cxd5 {[%emt 0:02:20]} exd5 {[%emt 0:00:27]} 7. Bd3 {[%emt 0:01:02]} Be7 {[%emt 0:04:15]} 8. O-O {[%emt 0:00:30]} O-O {[%emt 0:00:07]} 9. Bd2 {[%emt 0:01:31]} (9. b3 {was preferable.}) 9... a6 {[%emt 0:01:48]} 10. Rc1 {[%emt 0:00:45]} Nbd7 {[%emt 0:01:15]} 11. Bb1 {[%emt 0:01:14]} Bd6 {[%emt 0:02:34]} 12. h3 {[%emt 0:05:34]} Re8 {[%emt 0:01:00]} 13. a3 {[%emt 0:03:44]} Nf8 {[%emt 0:03:04]} 14. Ne2 {[%emt 0:11:05]} Ne4 {[%emt 0:04:17]} 15. Bc3 {[%emt 0:03:33]} Ng6 {[%emt 0:02:25]} 16. b4 {[%emt 0:08:56]} Ng5 {[%emt 0:09:29]} (16... a5 $15) 17. Nxg5 $11 {[%emt 0:04:20]} Qxg5 {[%emt 0:00:29]} 18. Bxg6 {[%emt 0:00:07]} (18. Bd2 $11) 18... hxg6 $15 {[%emt 0:02:46]} 19. f4 {[%emt 0:03:56]} Qe7 {[%emt 0:01:10]} 20. Rf3 {[%emt 0:00:20]} Bc8 {[%emt 0:05:38]} 21. Bd2 {[%emt 0:02:59]} Bf5 {[%emt 0:02:30]} 22. Nc3 {[%emt 0:02:30]} c6 {[%emt 0:03:24]} 23. Na4 {[%emt 0:10:28][%csl LRb6,LRc6] White is weak on the light squares} Qb7 {[%emt 0:01:13]} 24. Qb3 {[%emt 0:01:32]} Rab8 {[%emt 0:02:41]} 25. Nc3 {[%emt 0:00:31]} (25. Rf2 $15) 25... Bd3 {[%emt 0:03:50]} (25... c5 $17 26. Qxd5 Qxd5 27. Nxd5 cxd4) 26. Rf2 {[%emt 0:03:47][%cal Oc3d5]} (26. Nxd5 $2 Be4 27. Nc3 Bxf3 28. gxf3 Qd7 $19) 26... Bc4 {[%emt 0:00:50][%cal Bd3c4,Bc4d5,Bd5e4][%mdl 32] This pair of bishops is nice.} 27. Qc2 {[%emt 0:01:25]} Qe7 {[%emt 0:03:40]} (27... a5 $17 28. f5 gxf5 (28... axb4 29. axb4 gxf5 30. Rxf5 $19) 29. Qxf5 Bf8 (29... axb4 30. axb4 Re6 31. e4 $17)) 28. e4 $1 {[%emt 0:05:38]} dxe4 {[%emt 0:03:47]} 29. Nxe4 {[%emt 0:00:12]} Bd5 {[%emt 0:00:39]} 30. Nxd6 {[%emt 0:00:56]} Qxd6 {[%emt 0:00:07]} 31. f5 {[%emt 0:01:35]} Be4 {[%emt 0:01:27]} 32. Qc4 {[%emt 0:02:15] Strongly threatening Bf4.} Rbd8 {[%emt 0:06:10]} (32... Bxf5 33. Bf4 (33. Qxc6 Qxd4 34. Qc4 Qd7 $17) 33... Qd8 34. Bxb8 Qxb8 35. Qc3 $14 (35. Qxa6 b5 $16) (35. Qxc6 $2 Rc8 $19)) 33. fxg6 {[%emt 0:01:03]} Qxg6 {[%emt 0:01:49]} 34. Bc3 $2 {[%emt 0:03:05] [#]} ({White should play} 34. Re1 $15) 34... b5 {[%emt 0:03:22]} (34... Bd5 $1 $19 {[%cal Rd5c4]} 35. Qxa6 Re3) 35. Qa2 {[%emt 0:00:33]} Bd5 {[%emt 0:01:59]} 36. Qd2 {[%emt 0:00:28]} Re4 {[%emt 0:00:51] Black is much more active.} (36... Rd6 $17 {Threatens to win with ...Rde6.} 37. Qc2 Re3 38. Qxg6 Rxg6) 37. Re1 {[%emt 0:01:53]} Rde8 $36 {[%emt 0:01:44][%mdl 2048] Black fights for an advantage.} 38. Rxe4 {[%emt 0:00:11]} (38. Rfe2 $15) 38... Qxe4 $17 {[%emt 0:01:26]} 39. Bb2 {[%emt 0:04:59]} Re6 {[%emt 0:02:03]} 40. Qf4 {[%emt 0:06:04]} Qb1+ {[%emt 0:01:48]} 41. Kh2 {[%emt 0:00:30]} (41. Bc1 $17 {was called for.}) 41... Re1 $19 {[%emt 0:03:03]} 42. Qg4 $2 {[%emt 0:03:09]} (42. Kg3) 42... Rh1+ {[%emt 0:01:14]} 43. Kg3 {[%emt 0:00:02]} Qd3+ {[%emt 0:00:45]} 44. Kh4 {[%emt 0:01:19]} Be6 {[%emt 0:02:24]} 45. Qe2 {[%emt 0:02:04] [#]} Rxh3+ $1 {[%emt 0:01:49][%mdl 512]} 46. gxh3 {[%emt 0:00:41]} (46. Kg5 Qg6+) 46... Qxh3+ {[%emt 0:00:02]} 47. Kg5 {[%emt 0:00:13]} Qh6# {[%emt 0:00:02]} 0-1

[Event "29th Bosnjaci Open 2025"]
[Site "Bosnjaci"]
[Date "2025.01.03"]
[Round "1.17"]
[White "Glavas, Dragan"]
[Black "Lovrinic, Vlatko"]
[Result "1-0"]
[ECO "D35"]
[WhiteElo "2251"]
[BlackElo "1881"]
[Annotator "TA"]
[PlyCount "53"]
[EventDate "2025.01.04"]
[EventType "swiss"]
[EventCountry "CRO"]
[SourceTitle "playchess.com"]
[Source "ChessBase"]
[SourceQuality "1"]
[TimeControl "5400+30"]

{[%evp 17,53,17,12,15,20,48,47,33,38,38,39,41,48,44,48,35,44,39,55,47,47,31,58,54,52,51,52,56,76,58,65,0,493,479,493,483,491,488]} 1. d4 {[%emt 0:00:05]} d5 {[%emt 0:00:06]} 2. c4 {[%emt 0:00:07]} e6 {[%emt 0:00:06]} 3. cxd5 {[%emt 0:00:30]} exd5 {[%emt 0:00:09]} 4. Nc3 {[%emt 0:00:29]} Nf6 {[%emt 0:00:21]} 5. Bg5 {[%emt 0:00:26]} Be7 {[%emt 0:01:31]} 6. e3 {[%emt 0:00:52]} c6 {[%emt 0:01:27]} 7. Qc2 {[%emt 0:00:59]} Bg4 {[%emt 0:04:06]} 8. Bd3 {[%emt 0:00:29]} Bh5 {[%emt 0:02:08]} 9. Nge2 {[%emt 0:01:39]} Bg6 {[%emt 0:01:17]} 10. O-O {[%emt 0:01:26]} Bxd3 {[%emt 0:02:56]} 11. Qxd3 {[%emt 0:00:10]} Ne4 {[%emt 0:06:30] Prevents Ng3} 12. Nxe4 {[%emt 0:06:51][%cal Od3b3]} Bxg5 {[%emt 0:01:15]} 13. Nxg5 {[%emt 0:02:12]} Qxg5 {[%emt 0:00:11]} 14. b4 {[%emt 0:01:09][%cal Bb2b4,Bb4b5][%mdl 32]} O-O {[%emt 0:10:49]} 15. b5 {[%emt 0:01:57]} Nd7 {[%emt 0:02:45]} 16. Rfc1 {[%emt 0:02:32]} Rfc8 {[%emt 0:01:40]} 17. Nf4 {[%emt 0:03:37]} Nb6 {[%emt 0:02:07]} 18. bxc6 {[%emt 0:01:39]} bxc6 {[%emt 0:02:41]} 19. Qa6 {[%emt 0:02:47]} Qe7 {[%emt 0:06:19]} 20. Rc5 {[%emt 0:03:17]} Qd7 {[%emt 0:05:18]} 21. Rac1 {[%emt 0:07:11]} Rab8 {[%emt 0:08:58]} 22. h3 {[%emt 0:04:05]} Rb7 {[%emt 0:14:38]} 23. Nd3 {[%emt 0:02:22][%cal Bf4d3,Bd3c5,Bc5d7][%mdl 32] Black must now prevent Ne5. White has more active pieces.} Nc4 {[%emt 0:04:25]} 24. R5xc4 {[%emt 0:00:53]} (24. Qa4 $14) 24... dxc4 $4 {[%emt 0:00:45][%mdl 8192] [#]} (24... Rb6 $1 $11 {and Black stays safe.} 25. Qa4 dxc4 26. Qxc4 Qb7) 25. Nc5 $1 $18 {[%emt 0:00:09]} Rb6 {[%emt 0:02:58]} 26. Qxb6 {[%emt 0:00:12]} ({Weaker is} 26. Qxc4 Qf5 $15) 26... axb6 {[%emt 0:00:05]} 27. Nxd7 {[%emt 0:00:07]} 1-0

[Event "29th Bosnjaci Open 2025"]
[Site "Bosnjaci"]
[Date "2025.01.03"]
[Round "1.18"]
[White "Bozic, Niko"]
[Black "Besedes, Danilo"]
[Result "1-0"]
[ECO "C01"]
[WhiteElo "1874"]
[BlackElo "2239"]
[Annotator "TA"]
[PlyCount "39"]
[EventDate "2025.01.04"]
[EventType "swiss"]
[EventCountry "CRO"]
[SourceTitle "playchess.com"]
[Source "ChessBase"]
[SourceQuality "1"]
[TimeControl "5400+30"]

{[%evp 14,39,3,-1,0,-39,0,0,0,0,0,0,0,0,0,-39,-33,-42,-29,-68,-81,-166,-5,-8,-6,-55,466,462]} 1. e4 {[%emt 0:00:03]} e6 {[%emt 0:00:27]} 2. d4 {[%emt 0:00:09]} d5 {[%emt 0:00:03]} 3. exd5 {[%emt 0:00:08]} exd5 {[%emt 0:00:06]} 4. Bd3 {[%emt 0:00:05]} Nf6 {[%emt 0:00:14]} 5. Nf3 {[%emt 0:00:11]} Bg4 {[%emt 0:03:44]} 6. O-O {[%emt 0:01:23]} Be7 {[%emt 0:00:10]} 7. Nbd2 {[%emt 0:00:31]} O-O {[%emt 0:00:13]} 8. Re1 {[%emt 0:00:13]} c5 {[%emt 0:00:18]} 9. c3 {[%emt 0:02:26]} Nc6 {[%emt 0:00:13]} 10. dxc5 {[%emt 0:02:18]} Bxc5 {[%emt 0:00:44]} 11. Nb3 {[%emt 0:00:16]} Bb6 {[%emt 0:02:40]} 12. Be3 {[%emt 0:07:38]} Re8 {[%emt 0:02:55]} 13. Bxb6 {[%emt 0:05:17]} Qxb6 {[%emt 0:00:04]} 14. Be2 {[%emt 0:01:36]} a5 {[%emt 0:02:34]} 15. Qc2 {[%emt 0:06:05]} Rac8 {[%emt 0:11:22] and ...a4 should not be overlooked} 16. Rad1 {[%emt 0:03:44]} Ne4 $1 {[%emt 0:04:32]} 17. Rf1 {[%emt 0:08:07]} (17. Nfd4 $17 {was necessary.} Bd7 18. a4) 17... Bxf3 $2 {[%emt 0:01:43]} (17... Nb4 $1 $19 {[%cal Rb4c2]} 18. Qb1 Nxf2 19. Rxf2 Rxe2) 18. Bxf3 $11 {[%emt 0:00:22][%cal Oa2a4]} a4 {[%emt 0:00:05]} 19. Na1 {[%emt 0:07:29] [#]} (19. Bxe4 $1 $11 {is superior.} dxe4 20. Nd2) 19... Nd4 $2 {[%emt 0:00:26][%mdl 8192]} 20. Rxd4 {[%emt 0:00:52]} 1-0